[Event "Titled Tuesday Blitz July 27 2021"]
[White "Unver, Cumali"]
[Black "deribas12345"]
[WhiteFideId "6304940"]
[WhiteElo "2013"]
[BlackElo "2571"]
[Result "0-1"]
[Round "04"]
[TimeControl "180+1"]
[Date "2021.07.27"]
[WhiteClock "0:00:13"]
[BlackClock "0:01:04"]

1. e4 {[%clk 0:03:00]}  c5 {[%clk 0:02:59]} 2. Nf3 {[%clk 0:03:00]}  d6 {[%clk 0:02:56]} 3. Bb5+ {[%clk 0:03:00]}  Nc6 {[%clk 0:02:54]} 4. O-O {[%clk 0:02:59]}  Nf6 {[%clk 0:02:54]} 5. Re1 {[%clk 0:02:59]}  Bd7 {[%clk 0:02:52]} 6. c3 {[%clk 0:02:59]}  e5 {[%clk 0:02:49]} 7. d4 {[%clk 0:02:58]}  Be7 {[%clk 0:02:47]} 8. d5 {[%clk 0:02:57]}  Nb8 {[%clk 0:02:46]} 9. Bxd7+ {[%clk 0:02:58]}  Nbxd7 {[%clk 0:02:46]} 10. c4 {[%clk 0:02:57]}  a6 {[%clk 0:02:40]} 11. Nc3 {[%clk 0:02:57]}  Nf8 {[%clk 0:02:40]} 12. Rb1 {[%clk 0:02:56]}  N8d7 {[%clk 0:02:32]} 13. a3 {[%clk 0:02:55]}  a5 {[%clk 0:02:31]} 14. Nb5 {[%clk 0:02:38]}  O-O {[%clk 0:02:29]} 15. Qd3 {[%clk 0:02:38]}  Ne8 {[%clk 0:02:27]} 16. Rf1 {[%clk 0:02:31]}  Nc7 {[%clk 0:02:26]} 17. Nxc7 {[%clk 0:02:29]}  Qxc7 {[%clk 0:02:26]} 18. Ne1 {[%clk 0:02:30]}  Rfb8 {[%clk 0:02:17]} 19. b3 {[%clk 0:02:26]}  a4 {[%clk 0:02:15]} 20. Bd2 {[%clk 0:02:21]}  h6 {[%clk 0:02:02]} 21. Nc2 {[%clk 0:02:17]}  axb3 {[%clk 0:02:02]} 22. Rxb3 {[%clk 0:02:17]}  Ra4 {[%clk 0:02:01]} 23. Rfb1 {[%clk 0:02:13]}  b6 {[%clk 0:02:02]} 24. g3 {[%clk 0:02:07]}  Rba8 {[%clk 0:02:01]} 25. Kg2 {[%clk 0:02:06]}  Qc8 {[%clk 0:02:00]} 26. h3 {[%clk 0:02:03]}  Qa6 {[%clk 0:01:56]} 27. Rb5 {[%clk 0:01:53]}  Bd8 {[%clk 0:01:52]} 28. h4 {[%clk 0:01:50]}  Nf6 {[%clk 0:01:50]} 29. R1b3 {[%clk 0:01:41]}  Ne8 {[%clk 0:01:48]} 30. Rb1 {[%clk 0:01:35]}  Rb8 {[%clk 0:01:45]} 31. Qb3 {[%clk 0:01:23]}  Ra8 {[%clk 0:01:40]} 32. Bc1 {[%clk 0:01:19]}  Qc8 {[%clk 0:01:37]} 33. Ne3 {[%clk 0:01:19]}  g6 {[%clk 0:01:32]} 34. Qd1 {[%clk 0:01:15]}  h5 {[%clk 0:01:30]} 35. Qb3 {[%clk 0:01:10]}  Nf6 {[%clk 0:01:28]} 36. Qd3 {[%clk 0:01:09]}  Ng4 {[%clk 0:01:22]} 37. Nxg4 {[%clk 0:01:08]}  Qxg4 {[%clk 0:01:22]} 38. f3 {[%clk 0:01:08]}  Qd7 {[%clk 0:01:21]} 39. R1b3 {[%clk 0:00:57]}  Bc7 {[%clk 0:01:21]} 40. Qe2 {[%clk 0:00:53]}  f6 {[%clk 0:01:19]} 41. Qd3 {[%clk 0:00:53]}  Kh7 {[%clk 0:01:17]} 42. Rb1 {[%clk 0:00:44]}  Rf8 {[%clk 0:01:16]} 43. Qb3 {[%clk 0:00:40]}  Ra7 {[%clk 0:01:14]} 44. Bd2 {[%clk 0:00:37]}  f5 {[%clk 0:01:09]} 45. a4 {[%clk 0:00:36]}  fxe4 {[%clk 0:01:07]} 46. fxe4 {[%clk 0:00:36]}  Qg4 {[%clk 0:01:04]} 47. Re1 {[%clk 0:00:15]}  Rxa4 {[%clk 0:01:03]} 48. Qxa4 {[%clk 0:00:13]}  Rf3 {[%clk 0:01:04]} 0-1


[Site "https://www.chess.com"]

[Event "Titled Tuesday Blitz July 27 2021"]
[White "Vokhidov, Shamsiddin"]
[Black "Wong, Yinn Long"]
[WhiteFideId "14204223"]
[BlackFideId "5707684"]
[WhiteElo "2572"]
[BlackElo "2016"]
[Result "1/2-1/2"]
[Round "04"]
[TimeControl "180+1"]
[Date "2021.07.27"]
[WhiteClock "0:02:25"]
[BlackClock "0:02:25"]

1. e4 {[%clk 0:03:00]}  c6 {[%clk 0:03:00]} 2. d4 {[%clk 0:03:00]}  d5 {[%clk 0:03:01]} 3. e5 {[%clk 0:03:01]}  Bf5 {[%clk 0:03:00]} 4. h4 {[%clk 0:03:02]}  h5 {[%clk 0:03:01]} 5. c4 {[%clk 0:03:02]}  e6 {[%clk 0:03:01]} 6. Nc3 {[%clk 0:03:02]}  Ne7 {[%clk 0:02:58]} 7. Nge2 {[%clk 0:03:01]}  Bg4 {[%clk 0:02:57]} 8. Qb3 {[%clk 0:02:54]}  Qb6 {[%clk 0:02:51]} 9. c5 {[%clk 0:02:51]}  Qc7 {[%clk 0:02:51]} 10. Qc2 {[%clk 0:02:47]}  b6 {[%clk 0:02:45]} 11. b4 {[%clk 0:02:47]}  a5 {[%clk 0:02:45]} 12. b5 {[%clk 0:02:42]}  bxc5 {[%clk 0:02:43]} 13. dxc5 {[%clk 0:02:43]}  Qxe5 {[%clk 0:02:37]} 14. Bf4 {[%clk 0:02:42]}  Qf6 {[%clk 0:02:36]} 15. Bg5 {[%clk 0:02:41]}  Qe5 {[%clk 0:02:33]} 16. Bf4 {[%clk 0:02:30]}  Qf6 {[%clk 0:02:28]} 17. Bg5 {[%clk 0:02:29]}  Qe5 {[%clk 0:02:25]} 18. Bf4 {[%clk 0:02:25]} 1/2-1/2


[Site "https://www.chess.com"]

[Event "Titled Tuesday Blitz July 27 2021"]
[White "Volkov, Maksim"]
[Black "Stribuk, Artiom"]
[WhiteFideId "54123070"]
[BlackFideId "13515659"]
[WhiteElo "2113"]
[BlackElo "2224"]
[Result "0-1"]
[Round "04"]
[TimeControl "180+1"]
[Date "2021.07.27"]
[WhiteClock "0:00:25"]
[BlackClock "0:00:31"]

1. d4 {[%clk 0:03:00]}  Nf6 {[%clk 0:02:59]} 2. c4 {[%clk 0:03:00]}  g6 {[%clk 0:02:59]} 3. Nf3 {[%clk 0:02:59]}  Bg7 {[%clk 0:02:58]} 4. g3 {[%clk 0:02:59]}  O-O {[%clk 0:02:58]} 5. Bg2 {[%clk 0:03:00]}  c6 {[%clk 0:02:59]} 6. O-O {[%clk 0:02:59]}  d5 {[%clk 0:03:00]} 7. cxd5 {[%clk 0:02:59]}  cxd5 {[%clk 0:03:00]} 8. Nc3 {[%clk 0:02:59]}  Ne4 {[%clk 0:03:01]} 9. Bf4 {[%clk 0:02:56]}  Nxc3 {[%clk 0:03:00]} 10. bxc3 {[%clk 0:02:55]}  Nc6 {[%clk 0:03:01]} 11. Ne5 {[%clk 0:02:46]}  Nxe5 {[%clk 0:02:54]} 12. Bxe5 {[%clk 0:02:44]}  Bxe5 {[%clk 0:02:54]} 13. dxe5 {[%clk 0:02:44]}  e6 {[%clk 0:02:55]} 14. e4 {[%clk 0:02:38]}  dxe4 {[%clk 0:02:54]} 15. Qxd8 {[%clk 0:02:32]}  Rxd8 {[%clk 0:02:55]} 16. Bxe4 {[%clk 0:02:32]}  Kf8 {[%clk 0:02:55]} 17. Rfd1 {[%clk 0:02:31]}  Ke7 {[%clk 0:02:55]} 18. Rxd8 {[%clk 0:02:25]}  Kxd8 {[%clk 0:02:55]} 19. Rd1+ {[%clk 0:02:25]}  Kc7 {[%clk 0:02:37]} 20. Kg2 {[%clk 0:02:13]}  Rb8 {[%clk 0:02:37]} 21. Kf3 {[%clk 0:02:13]}  b6 {[%clk 0:02:27]} 22. Kf4 {[%clk 0:02:10]}  h6 {[%clk 0:02:27]} 23. h4 {[%clk 0:02:00]}  Bb7 {[%clk 0:02:23]} 24. h5 {[%clk 0:01:46]}  g5+ {[%clk 0:02:20]} 25. Ke3 {[%clk 0:01:46]}  Bxe4 {[%clk 0:02:13]} 26. Kxe4 {[%clk 0:01:46]}  Rg8 {[%clk 0:02:14]} 27. Rd6 {[%clk 0:01:40]}  Rd8 {[%clk 0:01:49]} 28. Rxd8 {[%clk 0:01:19]}  Kxd8 {[%clk 0:01:50]} 29. f4 {[%clk 0:00:59]}  gxf4 {[%clk 0:01:51]} 30. Kxf4 {[%clk 0:00:58]}  Ke7 {[%clk 0:01:46]} 31. g4 {[%clk 0:00:55]}  f6 {[%clk 0:01:35]} 32. c4 {[%clk 0:00:54]}  Kf7 {[%clk 0:01:25]} 33. Ke4 {[%clk 0:00:52]}  fxe5 {[%clk 0:00:47]} 34. Kxe5 {[%clk 0:00:49]}  Ke7 {[%clk 0:00:47]} 35. a3 {[%clk 0:00:43]}  Kf7 {[%clk 0:00:46]} 36. a4 {[%clk 0:00:39]}  Ke7 {[%clk 0:00:46]} 37. a5 {[%clk 0:00:27]}  bxa5 {[%clk 0:00:36]} 38. g5 {[%clk 0:00:27]}  a4 {[%clk 0:00:31]} 39. gxh6 {[%clk 0:00:25]}  a3 {[%clk 0:00:31]} 0-1


[Site "https://www.chess.com"]

[Event "Titled Tuesday Blitz July 27 2021"]
[White "Wachinger, Guenther"]
[Black "Darini, Pouria"]
[WhiteFideId "4604261"]
[BlackFideId "12502200"]
[WhiteElo "2212"]
[BlackElo "2489"]
[Result "0-1"]
[Round "04"]
[TimeControl "180+1"]
[Date "2021.07.27"]
[WhiteClock "0:00:03"]
[BlackClock "0:00:07"]

1. e4 {[%clk 0:03:00]}  c5 {[%clk 0:02:59]} 2. Nf3 {[%clk 0:02:57]}  d6 {[%clk 0:02:59]} 3. d4 {[%clk 0:02:57]}  cxd4 {[%clk 0:03:00]} 4. Nxd4 {[%clk 0:02:58]}  Nf6 {[%clk 0:03:00]} 5. Nc3 {[%clk 0:02:58]}  a6 {[%clk 0:03:01]} 6. Qf3 {[%clk 0:02:59]}  e6 {[%clk 0:02:53]} 7. g4 {[%clk 0:02:58]}  Nc6 {[%clk 0:02:44]} 8. Be3 {[%clk 0:02:43]}  Nxd4 {[%clk 0:02:43]} 9. Bxd4 {[%clk 0:02:43]}  e5 {[%clk 0:02:44]} 10. Be3 {[%clk 0:02:42]}  Bxg4 {[%clk 0:02:45]} 11. Qg3 {[%clk 0:02:42]}  Rc8 {[%clk 0:02:38]} 12. Bg5 {[%clk 0:02:39]}  Be6 {[%clk 0:02:33]} 13. O-O-O {[%clk 0:02:39]}  Be7 {[%clk 0:01:59]} 14. Bxf6 {[%clk 0:02:35]}  Bxf6 {[%clk 0:02:00]} 15. Nd5 {[%clk 0:02:35]}  Bg5+ {[%clk 0:01:24]} 16. Kb1 {[%clk 0:02:23]}  O-O {[%clk 0:01:24]} 17. h4 {[%clk 0:02:21]}  Bh6 {[%clk 0:01:24]} 18. Bh3 {[%clk 0:02:11]}  Kh8 {[%clk 0:01:24]} 19. Bf5 {[%clk 0:02:04]}  Rc5 {[%clk 0:01:19]} 20. Qb3 {[%clk 0:01:54]}  Rb5 {[%clk 0:01:11]} 21. Qa3 {[%clk 0:01:47]}  Bxd5 {[%clk 0:01:10]} 22. Rxd5 {[%clk 0:01:46]}  Rxd5 {[%clk 0:01:10]} 23. exd5 {[%clk 0:01:47]}  Qb6 {[%clk 0:01:07]} 24. f3 {[%clk 0:01:27]}  Be3 {[%clk 0:01:01]} 25. h5 {[%clk 0:01:25]}  Bd4 {[%clk 0:00:59]} 26. Qb3 {[%clk 0:01:25]}  Qxb3 {[%clk 0:00:46]} 27. axb3 {[%clk 0:01:25]}  Kg8 {[%clk 0:00:46]} 28. c3 {[%clk 0:01:20]}  Be3 {[%clk 0:00:43]} 29. Kc2 {[%clk 0:01:18]}  g6 {[%clk 0:00:44]} 30. Bd3 {[%clk 0:01:16]}  Kg7 {[%clk 0:00:44]} 31. Kd1 {[%clk 0:01:16]}  a5 {[%clk 0:00:42]} 32. Ke2 {[%clk 0:01:16]}  Bc5 {[%clk 0:00:41]} 33. Ra1 {[%clk 0:01:14]}  b6 {[%clk 0:00:42]} 34. Rh1 {[%clk 0:01:14]}  Re8 {[%clk 0:00:38]} 35. Bb5 {[%clk 0:01:11]}  Re7 {[%clk 0:00:37]} 36. Kd3 {[%clk 0:01:09]}  f5 {[%clk 0:00:35]} 37. hxg6 {[%clk 0:01:06]}  hxg6 {[%clk 0:00:36]} 38. Rh4 {[%clk 0:01:06]}  Bf2 {[%clk 0:00:24]} 39. Rh2 {[%clk 0:01:05]}  e4+ {[%clk 0:00:24]} 40. fxe4 {[%clk 0:01:05]}  fxe4+ {[%clk 0:00:24]} 41. Ke2 {[%clk 0:01:05]}  Bc5 {[%clk 0:00:20]} 42. Rg2 {[%clk 0:01:04]}  Kf6 {[%clk 0:00:19]} 43. Ba6 {[%clk 0:00:57]}  Rh7 {[%clk 0:00:18]} 44. Bc8 {[%clk 0:00:56]}  g5 {[%clk 0:00:18]} 45. Be6 {[%clk 0:00:43]}  Rh4 {[%clk 0:00:19]} 46. Kd2 {[%clk 0:00:37]}  Rf4 {[%clk 0:00:18]} 47. Ke2 {[%clk 0:00:35]}  e3 {[%clk 0:00:17]} 48. Rh2 {[%clk 0:00:31]}  g4 {[%clk 0:00:13]} 49. Rg2 {[%clk 0:00:29]}  Kg5 {[%clk 0:00:11]} 50. Bd7 {[%clk 0:00:25]}  Rf2+ {[%clk 0:00:06]} 51. Rxf2 {[%clk 0:00:25]}  exf2 {[%clk 0:00:07]} 52. Kf1 {[%clk 0:00:23]}  g3 {[%clk 0:00:06]} 53. b4 {[%clk 0:00:19]}  axb4 {[%clk 0:00:06]} 54. cxb4 {[%clk 0:00:20]}  Bxb4 {[%clk 0:00:06]} 55. Bb5 {[%clk 0:00:11]}  Kf4 {[%clk 0:00:07]} 56. Be2 {[%clk 0:00:07]}  Ke3 {[%clk 0:00:06]} 57. Bg4 {[%clk 0:00:07]}  Bc5 {[%clk 0:00:06]} 58. b3 {[%clk 0:00:07]}  Bd4 {[%clk 0:00:05]} 59. Kg2 {[%clk 0:00:07]}  Be5 {[%clk 0:00:06]} 60. Bd7 {[%clk 0:00:04]}  Kd2 {[%clk 0:00:07]} 61. Bb5 {[%clk 0:00:04]}  Kc3 {[%clk 0:00:06]} 62. Bc4 {[%clk 0:00:04]}  Kb4 {[%clk 0:00:07]} 63. Be2 {[%clk 0:00:02]}  Kxb3 {[%clk 0:00:07]} 64. Kf3 {[%clk 0:00:02]}  Kb4 {[%clk 0:00:07]} 65. Ke4 {[%clk 0:00:03]}  g2 {[%clk 0:00:07]} 0-1


[Site "https://www.chess.com"]

[Event "Titled Tuesday Blitz July 27 2021"]
[White "Wiewiora, Eneasz"]
[Black "Terletsky, Oleg"]
[WhiteFideId "1140396"]
[BlackFideId "14116774"]
[WhiteElo "2312"]
[BlackElo "2094"]
[Result "1-0"]
[Round "04"]
[TimeControl "180+1"]
[Date "2021.07.27"]
[WhiteClock "0:00:23"]
[BlackClock "0:00:31"]

1. e4 {[%clk 0:03:00]}  e5 {[%clk 0:02:59]} 2. Nf3 {[%clk 0:02:59]}  Nc6 {[%clk 0:02:59]} 3. Bc4 {[%clk 0:02:58]}  Nf6 {[%clk 0:02:58]} 4. d3 {[%clk 0:02:58]}  h6 {[%clk 0:02:57]} 5. O-O {[%clk 0:02:58]}  d6 {[%clk 0:02:57]} 6. c3 {[%clk 0:02:55]}  g6 {[%clk 0:02:56]} 7. a4 {[%clk 0:02:54]}  Bg7 {[%clk 0:02:56]} 8. Re1 {[%clk 0:02:54]}  O-O {[%clk 0:02:55]} 9. Nbd2 {[%clk 0:02:54]}  Na5 {[%clk 0:02:55]} 10. Ba2 {[%clk 0:02:54]}  c5 {[%clk 0:02:55]} 11. b4 {[%clk 0:02:54]}  cxb4 {[%clk 0:02:52]} 12. cxb4 {[%clk 0:02:55]}  Nc6 {[%clk 0:02:52]} 13. Ba3 {[%clk 0:02:41]}  a6 {[%clk 0:02:43]} 14. Bc4 {[%clk 0:02:24]}  Bg4 {[%clk 0:02:18]} 15. h3 {[%clk 0:02:20]}  Bh5 {[%clk 0:02:18]} 16. Qb3 {[%clk 0:01:54]}  Qd7 {[%clk 0:02:10]} 17. b5 {[%clk 0:01:44]}  Na5 {[%clk 0:02:02]} 18. Qb4 {[%clk 0:01:40]}  Nxc4 {[%clk 0:01:58]} 19. dxc4 {[%clk 0:01:40]}  axb5 {[%clk 0:01:35]} 20. axb5 {[%clk 0:01:35]}  Bxf3 {[%clk 0:01:32]} 21. Nxf3 {[%clk 0:01:34]}  Rfc8 {[%clk 0:01:07]} 22. Rac1 {[%clk 0:01:20]}  Qe6 {[%clk 0:01:01]} 23. Qxd6 {[%clk 0:00:43]}  Qxd6 {[%clk 0:00:31]} 24. Bxd6 {[%clk 0:00:42]}  Ra4 {[%clk 0:00:31]} 25. Bxe5 {[%clk 0:00:23]} 1-0


[Site "https://www.chess.com"]

[Event "Titled Tuesday Blitz July 27 2021"]
[White "Williams, Simon K"]
[Black "Koridze, Lile"]
[WhiteFideId "404454"]
[BlackFideId "13612514"]
[WhiteElo "2468"]
[BlackElo "1978"]
[Result "0-1"]
[Round "04"]
[TimeControl "180+1"]
[Date "2021.07.27"]
[WhiteClock "0:00:08"]
[BlackClock "0:00:44"]

1. d4 {[%clk 0:03:00]}  Nf6 {[%clk 0:02:59]} 2. Nc3 {[%clk 0:02:59]}  d5 {[%clk 0:02:58]} 3. Bf4 {[%clk 0:02:58]}  c6 {[%clk 0:02:57]} 4. e3 {[%clk 0:02:58]}  Bg4 {[%clk 0:02:55]} 5. f3 {[%clk 0:02:58]}  Bh5 {[%clk 0:02:55]} 6. h4 {[%clk 0:02:54]}  Bg6 {[%clk 0:02:53]} 7. g4 {[%clk 0:02:53]}  h6 {[%clk 0:02:50]} 8. Nh3 {[%clk 0:02:47]}  e6 {[%clk 0:02:33]} 9. Bd3 {[%clk 0:02:37]}  Bxd3 {[%clk 0:02:28]} 10. Qxd3 {[%clk 0:02:37]}  Nbd7 {[%clk 0:02:28]} 11. Nf2 {[%clk 0:02:32]}  a6 {[%clk 0:02:10]} 12. e4 {[%clk 0:02:22]}  dxe4 {[%clk 0:02:10]} 13. fxe4 {[%clk 0:02:22]}  c5 {[%clk 0:02:07]} 14. d5 {[%clk 0:02:21]}  Qb6 {[%clk 0:02:01]} 15. O-O-O {[%clk 0:02:18]}  c4 {[%clk 0:02:00]} 16. Qf3 {[%clk 0:02:09]}  Bc5 {[%clk 0:01:57]} 17. Rhf1 {[%clk 0:01:49]}  e5 {[%clk 0:01:54]} 18. Bd2 {[%clk 0:01:43]}  O-O {[%clk 0:01:40]} 19. g5 {[%clk 0:01:39]}  Ne8 {[%clk 0:01:37]} 20. gxh6 {[%clk 0:01:38]}  g6 {[%clk 0:01:37]} 21. h5 {[%clk 0:01:37]}  Nd6 {[%clk 0:01:29]} 22. hxg6 {[%clk 0:01:29]}  fxg6 {[%clk 0:01:28]} 23. Qg4 {[%clk 0:01:30]}  Kh8 {[%clk 0:01:13]} 24. Qxd7 {[%clk 0:01:13]}  Rf7 {[%clk 0:01:11]} 25. Qe6 {[%clk 0:01:09]}  Bxf2 {[%clk 0:01:07]} 26. Qxe5+ {[%clk 0:01:04]}  Kh7 {[%clk 0:01:05]} 27. Na4 {[%clk 0:00:59]}  Qc7 {[%clk 0:01:01]} 28. Qh2 {[%clk 0:00:41]}  Raf8 {[%clk 0:00:59]} 29. e5 {[%clk 0:00:40]}  Ne4 {[%clk 0:00:57]} 30. d6 {[%clk 0:00:35]}  Qd7 {[%clk 0:00:55]} 31. Nc3 {[%clk 0:00:27]}  Nxd2 {[%clk 0:00:52]} 32. Kxd2 {[%clk 0:00:23]}  Be3+ {[%clk 0:00:51]} 33. Kxe3 {[%clk 0:00:20]}  Rxf1 {[%clk 0:00:51]} 34. Rxf1 {[%clk 0:00:20]}  Rxf1 {[%clk 0:00:52]} 35. Qg2 {[%clk 0:00:19]}  Qf7 {[%clk 0:00:50]} 36. Nd5 {[%clk 0:00:16]}  Re1+ {[%clk 0:00:44]} 37. Kd2 {[%clk 0:00:16]}  Rxe5 {[%clk 0:00:44]} 38. Kc3 {[%clk 0:00:08]} 0-1


[Site "https://www.chess.com"]

[Event "Titled Tuesday Blitz July 27 2021"]
[White "Yaran, Siar"]
[Black "Pires, Marcos Vinicius Torsani"]
[WhiteFideId "6323006"]
[BlackFideId "2118939"]
[WhiteElo "1977"]
[BlackElo "2273"]
[Result "1-0"]
[Round "04"]
[TimeControl "180+1"]
[Date "2021.07.27"]
[WhiteClock "0:00:57"]
[BlackClock "0:00:43"]

1. e4 {[%clk 0:03:00]}  c6 {[%clk 0:02:54]} 2. d4 {[%clk 0:03:00]}  d5 {[%clk 0:02:53]} 3. Nc3 {[%clk 0:03:01]}  dxe4 {[%clk 0:02:53]} 4. Nxe4 {[%clk 0:03:02]}  Bf5 {[%clk 0:02:53]} 5. Ng3 {[%clk 0:03:02]}  Bg6 {[%clk 0:02:53]} 6. Nf3 {[%clk 0:03:02]}  Nd7 {[%clk 0:02:53]} 7. Bd3 {[%clk 0:03:03]}  e6 {[%clk 0:02:53]} 8. O-O {[%clk 0:03:02]}  Ngf6 {[%clk 0:02:53]} 9. Re1 {[%clk 0:03:03]}  Be7 {[%clk 0:02:51]} 10. c4 {[%clk 0:03:00]}  Bxd3 {[%clk 0:02:51]} 11. Qxd3 {[%clk 0:03:00]}  O-O {[%clk 0:02:51]} 12. Bf4 {[%clk 0:02:59]}  Re8 {[%clk 0:02:49]} 13. Rad1 {[%clk 0:02:59]}  Qa5 {[%clk 0:02:48]} 14. a3 {[%clk 0:02:59]}  Rad8 {[%clk 0:02:40]} 15. Qc2 {[%clk 0:02:55]}  Nf8 {[%clk 0:02:35]} 16. Bd2 {[%clk 0:02:48]}  Qc7 {[%clk 0:02:34]} 17. Bc3 {[%clk 0:02:48]}  Ng6 {[%clk 0:02:32]} 18. Ne4 {[%clk 0:02:40]}  Nxe4 {[%clk 0:02:28]} 19. Qxe4 {[%clk 0:02:41]}  Bf6 {[%clk 0:02:29]} 20. Ne5 {[%clk 0:02:41]}  Nxe5 {[%clk 0:02:25]} 21. dxe5 {[%clk 0:02:40]}  Be7 {[%clk 0:02:25]} 22. b4 {[%clk 0:02:33]}  Rxd1 {[%clk 0:02:22]} 23. Rxd1 {[%clk 0:02:32]}  Rd8 {[%clk 0:02:22]} 24. Rd3 {[%clk 0:02:32]}  Rxd3 {[%clk 0:02:20]} 25. Qxd3 {[%clk 0:02:33]}  h6 {[%clk 0:02:16]} 26. f4 {[%clk 0:02:32]}  Qb6+ {[%clk 0:02:12]} 27. Kf1 {[%clk 0:02:26]}  Bh4 {[%clk 0:02:05]} 28. g3 {[%clk 0:02:25]}  Be7 {[%clk 0:02:05]} 29. Bd4 {[%clk 0:02:17]}  Qd8 {[%clk 0:02:03]} 30. Ke2 {[%clk 0:02:15]}  a6 {[%clk 0:02:00]} 31. g4 {[%clk 0:01:46]}  b5 {[%clk 0:01:58]} 32. Bc5 {[%clk 0:01:45]}  Qe8 {[%clk 0:01:45]} 33. Bd6 {[%clk 0:01:37]}  Bf8 {[%clk 0:01:40]} 34. h4 {[%clk 0:01:35]}  Qd8 {[%clk 0:01:34]} 35. Bxf8 {[%clk 0:01:28]}  Qxf8 {[%clk 0:01:33]} 36. Qd6 {[%clk 0:01:28]}  Qc8 {[%clk 0:01:22]} 37. Kd3 {[%clk 0:01:24]}  bxc4+ {[%clk 0:01:18]} 38. Kxc4 {[%clk 0:01:24]}  Qb7 {[%clk 0:01:19]} 39. a4 {[%clk 0:01:20]}  a5 {[%clk 0:01:13]} 40. Qd8+ {[%clk 0:01:14]}  Kh7 {[%clk 0:01:10]} 41. bxa5 {[%clk 0:01:13]}  Qa6+ {[%clk 0:01:09]} 42. Kc5 {[%clk 0:01:12]}  Qe2 {[%clk 0:01:05]} 43. Kb6 {[%clk 0:01:05]}  Qe3+ {[%clk 0:00:54]} 44. Kb7 {[%clk 0:01:01]}  Qb3+ {[%clk 0:00:52]} 45. Qb6 {[%clk 0:01:00]}  Qxa4 {[%clk 0:00:52]} 46. a6 {[%clk 0:01:00]}  Qe4 {[%clk 0:00:45]} 47. a7 {[%clk 0:00:56]}  c5+ {[%clk 0:00:45]} 48. Qc6 {[%clk 0:00:57]}  Qb4+ {[%clk 0:00:43]} 49. Kc8 {[%clk 0:00:57]} 1-0


[Site "https://www.chess.com"]

[Event "Titled Tuesday Blitz July 27 2021"]
[White "Ahmadzada, Ahmad"]
[Black "Parkhov, Yair"]
[WhiteFideId "13413007"]
[BlackFideId "2813408"]
[WhiteElo "2226"]
[BlackElo "2131"]
[Result "1/2-1/2"]
[Round "05"]
[TimeControl "180+1"]
[Date "2021.07.27"]
[WhiteClock "0:00:05"]
[BlackClock "0:00:06"]

1. e4 {[%clk 0:03:00]}  e6 {[%clk 0:02:53]} 2. d4 {[%clk 0:03:00]}  d5 {[%clk 0:02:53]} 3. exd5 {[%clk 0:03:00]}  exd5 {[%clk 0:02:53]} 4. Bd3 {[%clk 0:03:00]}  Bd6 {[%clk 0:02:52]} 5. Nf3 {[%clk 0:02:57]}  Nf6 {[%clk 0:02:47]} 6. O-O {[%clk 0:02:57]}  O-O {[%clk 0:02:47]} 7. h3 {[%clk 0:02:55]}  h6 {[%clk 0:02:46]} 8. c4 {[%clk 0:02:53]}  dxc4 {[%clk 0:02:44]} 9. Bxc4 {[%clk 0:02:53]}  Nc6 {[%clk 0:02:42]} 10. Nc3 {[%clk 0:02:52]}  Bf5 {[%clk 0:02:39]} 11. Re1 {[%clk 0:02:44]}  Re8 {[%clk 0:02:35]} 12. Be3 {[%clk 0:02:14]}  Qd7 {[%clk 0:02:27]} 13. a3 {[%clk 0:01:56]}  a6 {[%clk 0:02:21]} 14. Rc1 {[%clk 0:01:53]}  Rad8 {[%clk 0:02:12]} 15. Bf1 {[%clk 0:01:30]}  Ne4 {[%clk 0:01:53]} 16. Qb3 {[%clk 0:01:22]}  Na5 {[%clk 0:01:34]} 17. Qd1 {[%clk 0:01:20]}  Nxc3 {[%clk 0:01:27]} 18. bxc3 {[%clk 0:01:18]}  b5 {[%clk 0:01:26]} 19. Ra1 {[%clk 0:00:47]}  Qc8 {[%clk 0:01:18]} 20. a4 {[%clk 0:00:42]}  Nc4 {[%clk 0:01:10]} 21. axb5 {[%clk 0:00:36]}  axb5 {[%clk 0:01:06]} 22. Bxc4 {[%clk 0:00:35]}  bxc4 {[%clk 0:01:07]} 23. Qa4 {[%clk 0:00:34]}  Bxh3 {[%clk 0:01:00]} 24. gxh3 {[%clk 0:00:05]}  Qxh3 {[%clk 0:01:00]} 25. Ne5 {[%clk 0:00:06]}  Bxe5 {[%clk 0:00:19]} 26. Bf4 {[%clk 0:00:04]}  Bxf4 {[%clk 0:00:09]} 27. Rxe8+ {[%clk 0:00:04]}  Kh7 {[%clk 0:00:09]} 28. Qc2+ {[%clk 0:00:03]}  g6 {[%clk 0:00:09]} 29. Rxd8 {[%clk 0:00:03]}  Bh2+ {[%clk 0:00:09]} 30. Kh1 {[%clk 0:00:03]}  Bg3+ {[%clk 0:00:10]} 31. Kg1 {[%clk 0:00:04]}  Bh2+ {[%clk 0:00:10]} 32. Kh1 {[%clk 0:00:04]}  Bg3+ {[%clk 0:00:10]} 33. Kg1 {[%clk 0:00:05]}  Bh2+ {[%clk 0:00:06]} 1/2-1/2


[Site "https://www.chess.com"]